bitfinex-derivatives/quotes_BTCF0:USTF0_20260207
["timestamp","ask_amount","ask_price","bid_price","bid_amount"]
[1770481142788,0.014407,69469.0,69424.0,0.0002]
[1770481142993,0.144,69473.0,69403.0,0.014421]
[1770481143183,0.21547552,69477.0,69408.0,0.01442]
[1770481143385,0.21547552,69472.0,69411.0,0.29940846]
[1770481143692,0.014405,69477.0,69412.0,0.50154193]
[1770481143988,0.014403,69487.0,69417.0,0.28498946]
[1770481144191,0.014403,69487.0,69437.0,0.0002]
[1770481144388,0.21468862,69486.0,69437.0,0.0002]
[1770481145091,0.014404,69484.0,69437.0,0.0002]
[1770481145282,0.014404,69484.0,69419.0,0.28498946]
[1770481145788,0.014406,69474.0,69412.0,0.28498946]
[1770481145981,0.014406,69474.0,69411.0,0.28498946]
[1770481146187,0.014407,69471.0,69409.0,0.28498946]
[1770481146485,0.21588459,69470.0,69426.0,0.0002]
[1770481146878,0.21588459,69472.0,69426.0,0.0002]
[1770481147080,0.14548226,69480.0,69426.0,0.0002]
[1770481147282,0.21471629,69478.0,69426.0,0.0002]
[1770481147587,0.14548226,69480.0,69413.0,0.28498946]
[1770481147792,0.21471629,69477.0,69417.0,0.28498946]
[1770481147977,0.21471629,69477.0,69417.0,0.50017978]
[1770481148182,0.014405,69479.0,69416.0,0.17148821]
[1770481148389,0.014405,69479.0,69414.0,0.50017978]
[1770481148590,0.005,69488.0,69414.0,0.50017978]
[1770481148591,0.014406,69476.0,69433.0,0.0002]
[1770481149093,0.014407,69471.0,69433.0,0.0002]
[1770481149284,0.014409,69459.0,69433.0,0.0002]
[1770481149585,0.014409,69459.0,69400.0,0.0002]
[1770481149787,0.21564295,69476.0,69397.0,0.28498946]
[1770481149788,0.014407,69469.0,69397.0,0.28498946]
[1770481149991,0.014407,69469.0,69397.0,0.50017978]
[1770481150286,0.014408,69463.0,69398.0,0.71676886]
[1770481150484,0.005,69463.0,69398.0,0.50017978]
[1770481150687,0.005,69463.0,69399.0,0.71676746]
[1770481150889,0.21634201,69462.0,69421.0,0.0002]
[1770481151088,0.005,69463.0,69421.0,0.0002]
[1770481151288,0.014406,69473.0,69421.0,0.0002]
[1770481151589,0.014409,69461.0,69421.0,0.0002]
[1770481151891,0.04544,69497.0,69421.0,0.0002]
[1770481151892,0.005,69465.0,69421.0,0.0002]
[1770481152097,0.005,69465.0,69406.0,0.50017978]
[1770481152290,0.005,69465.0,69408.0,0.50017978]
[1770481152686,0.014406,69474.0,69406.0,0.50017978]
[1770481152886,0.014406,69474.0,69408.0,0.50017978]
[1770481153087,0.005,69476.0,69408.0,0.50017978]
[1770481153088,0.014406,69472.0,69408.0,0.50017978]
[1770481153293,0.014406,69472.0,69393.0,0.35246694]
[1770481153294,0.014409,69460.0,69426.0,0.0002]
[1770481153488,0.005,69468.0,69426.0,0.0002]
[1770481153889,0.005,69448.0,69426.0,0.0002]
[1770481154384,0.005,69448.0,69396.0,0.0002]
[1770481155498,0.005,69448.0,69396.0,0.50037978]
[1770481155698,0.005,69448.0,69410.0,0.0002]
[1770481156797,0.005,69448.0,69396.0,0.50017978]
[1770481157600,0.005,69448.0,69395.0,0.50017978]
[1770481157990,0.005,69448.0,69411.0,0.0002]
[1770481158390,0.005,69443.0,69411.0,0.0002]
[1770481159186,0.005,69447.0,69389.0,0.50017978]
[1770481159389,0.005,69447.0,69392.0,0.29242384]
[1770481159902,0.005,69447.0,69388.0,0.50017978]
[1770481160093,0.005,69447.0,69410.0,0.0002]
[1770481161095,0.005,69443.0,69410.0,0.0002]
[1770481161401,0.005,69443.0,69385.0,0.0002]
[1770481162292,0.005,69438.0,69385.0,0.0002]
[1770481162493,0.014414,69437.0,69379.0,0.50017978]
[1770481162694,0.014414,69437.0,69377.0,0.50017978]
[1770481162895,0.014414,69437.0,69376.0,0.50017978]
[1770481163697,0.014414,69437.0,69402.0,0.0002]
[1770481164495,0.005,69438.0,69402.0,0.0002]
[1770481164701,0.005,69438.0,69380.0,0.0002]
[1770481165907,0.005,69438.0,69379.0,0.50017978]
[1770481166097,0.005,69438.0,69379.0,0.78829876]
[1770481166303,0.005,69438.0,69379.0,0.28811898]
[1770481166604,0.014414,69437.0,69372.0,0.78389341]
[1770481166805,0.014414,69437.0,69372.0,0.28371363]
[1770481167108,0.014416,69425.0,69400.0,0.0002]
[1770481167401,0.144,69446.0,69367.0,0.28270684]
[1770481167402,0.014414,69435.0,69376.0,0.0002]
[1770481167701,0.23067218,69435.0,69376.0,0.0002]
[1770481168096,0.005,69442.0,69373.0,0.50028394]
[1770481168297,0.21661356,69434.0,69374.0,0.71695085]
[1770481168505,0.21661356,69434.0,69382.0,0.50028394]
[1770481168696,0.005,69444.0,69383.0,0.71695085]
[1770481168892,0.005,69444.0,69384.0,0.71695085]
[1770481169098,0.21605284,69440.0,69384.0,0.50028394]
[1770481169304,0.21605284,69443.0,69392.0,0.0002]
[1770481169503,0.005,69444.0,69392.0,0.0002]
[1770481169709,0.21605284,69439.0,69392.0,0.0002]
[1770481169904,0.21605284,69442.0,69392.0,0.0002]
[1770481170098,0.005,69444.0,69392.0,0.0002]
[1770481170500,0.005,69451.0,69393.0,0.7168965]
[1770481170704,0.005,69451.0,69394.0,0.7168965]
[1770481170906,0.014411,69450.0,69392.0,0.50028394]
[1770481171102,0.014411,69450.0,69388.0,0.50028394]
[1770481171298,0.21579665,69449.0,69388.0,0.50028394]
[1770481171498,0.21579665,69449.0,69397.0,0.0002]
[1770481172508,0.014412,69448.0,69388.0,0.28498946]
[1770481172714,0.21579665,69449.0,69388.0,0.28498946]
[1770481173010,0.005,69451.0,69396.0,0.28498946]
[1770481173302,0.014407,69468.0,69406.0,0.28498946]
[1770481173698,0.21681772,69467.0,69421.0,0.0002]
[1770481174709,0.21681772,69467.0,69407.0,0.28498946]
[1770481175099,0.014408,69466.0,69406.0,0.28498946]
[1770481175402,0.014408,69466.0,69405.0,0.28498946]
[1770481175403,0.21476756,69465.0,69405.0,0.28498946]
[1770481175606,0.21476756,69465.0,69402.0,0.28498946]
[1770481175799,0.014408,69464.0,69403.0,0.0002]
[1770481176107,0.21709096,69463.0,69403.0,0.0002]
[1770481176497,0.005,69472.0,69403.0,0.0002]
[1770481176705,0.005,69472.0,69409.0,0.28498946]
[1770481176906,0.14559123,69460.0,69426.0,0.0002]
[1770481177105,0.014409,69460.0,69394.0,0.28498946]
[1770481177404,0.21709096,69471.0,69393.0,0.21529448]
[1770481177405,0.014407,69471.0,69415.0,0.0002]
[1770481177706,0.01441,69455.0,69415.0,0.0002]
[1770481177904,0.21464868,69459.0,69394.0,0.50028394]
[1770481178109,0.014408,69465.0,69395.0,0.71688644]
[1770481178415,0.005,69462.0,69404.0,0.50028394]
[1770481179112,0.014408,69466.0,69418.0,0.0002]
[1770481179505,0.005,69461.0,69418.0,0.0002]
[1770481179812,0.005,69467.0,69418.0,0.0002]
[1770481180010,0.005,69467.0,69406.0,0.50028394]
[1770481180307,0.005,69467.0,69407.0,0.71684847]
[1770481180510,0.005,69467.0,69413.0,0.50028394]
[1770481180809,0.005,69467.0,69408.0,0.23097693]
[1770481180810,0.005,69476.0,69422.0,0.50028394]
[1770481181203,0.014404,69486.0,69428.0,0.0002]
[1770481182415,0.014404,69486.0,69425.0,0.28498946]
[1770481182711,0.014404,69486.0,69420.0,0.28498946]
[1770481182913,0.014404,69486.0,69419.0,0.28498946]
[1770481183214,0.014404,69486.0,69424.0,0.28498946]
[1770481183415,0.014404,69486.0,69436.0,0.0002]
[1770481184505,0.014404,69486.0,69432.0,0.2886568]
[1770481184911,0.014404,69486.0,69425.0,0.28335294]
[1770481185506,0.014404,69486.0,69437.0,0.0002]
[1770481186612,0.014404,69486.0,69432.0,0.28400366]
[1770481186817,0.014402,69496.0,69432.0,0.28400366]
[1770481187017,0.014403,69490.0,69432.0,0.28400366]
[1770481187515,0.21725166,69489.0,69437.0,0.0002]
[1770481187710,0.014404,69486.0,69437.0,0.0002]
[1770481188113,0.014405,69481.0,69437.0,0.0002]
[1770481188615,0.014405,69481.0,69416.0,0.11350125]
[1770481188816,0.014405,69481.0,69414.0,0.11350125]
[1770481189205,0.014407,69469.0,69411.0,0.11350125]
[1770481189412,0.014407,69469.0,69408.0,0.11350125]
[1770481189617,0.014408,69463.0,69409.0,0.28612846]
[1770481189820,0.014408,69463.0,69424.0,0.0002]
[1770481190410,0.014406,69472.0,69424.0,0.0002]
[1770481190920,0.014408,69467.0,69405.0,0.11350125]
[1770481191213,0.014403,69487.0,69409.0,0.28413905]
[1770481191416,0.014403,69487.0,69421.0,0.11350125]
[1770481191610,0.014403,69487.0,69422.0,0.33007118]
[1770481191809,0.014403,69487.0,69425.0,0.11350125]
[1770481192010,0.005,69495.0,69432.0,0.0002]
[1770481192514,0.014402,69492.0,69432.0,0.0002]
[1770481192909,0.014403,69487.0,69432.0,0.0002]
[1770481193115,0.014403,69487.0,69426.0,0.11350125]
[1770481193415,0.014404,69484.0,69421.0,0.11350125]
[1770481193616,0.014404,69484.0,69418.0,0.11350125]
[1770481194214,0.014404,69484.0,69429.0,0.0002]
[1770481195018,0.014403,69488.0,69429.0,0.0002]
[1770481195222,0.014403,69488.0,69420.0,0.11350125]
[1770481195417,0.2309666,69488.0,69420.0,0.11350125]
[1770481195720,0.2309666,69488.0,69419.0,0.11350125]
[1770481196116,0.014405,69482.0,69418.0,0.11350125]
[1770481196318,0.005,69485.0,69428.0,0.0002]
[1770481196319,0.014407,69470.0,69428.0,0.0002]
[1770481196618,0.21701546,69469.0,69428.0,0.0002]
[1770481196824,0.014407,69468.0,69428.0,0.0002]
[1770481197211,0.019407,69468.0,69428.0,0.0002]
[1770481197517,0.019407,69468.0,69402.0,0.28330266]
[1770481197918,0.019407,69468.0,69402.0,0.56829212]
[1770481198220,0.019407,69468.0,69404.0,0.28498946]
[1770481198419,0.019407,69468.0,69421.0,0.0002]
[1770481199521,0.019407,69468.0,69409.0,0.28739721]
[1770481199730,0.019407,69468.0,69402.0,0.28330266]
[1770481200224,0.019407,69468.0,69402.0,0.7835866]
[1770481200427,0.019407,69468.0,69409.0,0.28968314]
[1770481200622,0.019407,69468.0,69421.0,0.0002]
[1770481200812,0.01441,69456.0,69421.0,0.0002]
[1770481201512,0.014411,69450.0,69396.0,0.28768186]
[1770481201718,0.014411,69450.0,69407.0,0.0002]
[1770481202927,0.014411,69450.0,69389.0,0.28453858]
[1770481203524,0.16000223,69450.0,69389.0,0.28453858]
[1770481203925,0.16000223,69450.0,69383.0,0.0002]
[1770481203926,0.014414,69438.0,69397.0,0.0002]
[1770481205017,0.014414,69438.0,69376.0,0.28518946]
[1770481205722,0.014411,69448.0,69390.0,0.28658198]
[1770481206122,0.21703744,69447.0,69409.0,0.0002]
[1770481206325,0.014409,69458.0,69409.0,0.0002]
[1770481206624,0.21703744,69461.0,69409.0,0.0002]
[1770481206819,0.005,69467.0,69409.0,0.0002]
[1770481207014,0.005,69467.0,69420.0,0.28498946]
[1770481207230,0.005,69467.0,69415.0,0.014418]
[1770481207231,0.005,69467.0,69425.0,0.28498946]
[1770481207528,0.04544,69479.0,69426.0,0.50149424]
[1770481207723,0.04544,69479.0,69427.0,0.50149424]
[1770481207916,0.04544,69479.0,69427.0,0.28498946]
[1770481208130,0.04544,69479.0,69425.0,0.28498946]
[1770481208328,0.04544,69479.0,69408.0,0.34726694]
[1770481208329,0.04544,69479.0,69428.0,0.0002]
[1770481209328,0.014405,69478.0,69428.0,0.0002]
[1770481209528,0.014405,69478.0,69419.0,0.28498946]
[1770481209529,0.014405,69478.0,69416.0,0.28498946]
[1770481209731,0.04544,69479.0,69416.0,0.28498946]
[1770481209732,0.014407,69471.0,69416.0,0.28498946]
[1770481209929,0.014407,69471.0,69406.0,0.28498946]
[1770481210131,0.014407,69469.0,69404.0,0.28498946]
[1770481210328,0.014407,69469.0,69405.0,0.33006782]
[1770481210532,0.014407,69469.0,69404.0,0.17148821]
[1770481210533,0.2211159,69476.0,69408.0,0.28498946]
[1770481210835,0.014406,69477.0,69415.0,0.28498946]
[1770481211218,0.21643207,69475.0,69415.0,0.28498946]
[1770481211533,0.014406,69477.0,69415.0,0.28498946]
[1770481211835,0.005,69484.0,69427.0,0.0002]
[1770481212125,0.005,69495.0,69427.0,0.28518946]
[1770481212336,0.014403,69491.0,69427.0,0.0002]
[1770481212520,0.005,69487.0,69427.0,0.28518946]
[1770481212929,0.014403,69489.0,69435.0,0.0002]
[1770481213135,0.005,69487.0,69435.0,0.0002]
[1770481213530,0.014404,69486.0,69435.0,0.0002]
[1770481213928,0.014404,69486.0,69424.0,0.28498946]
[1770481214126,0.014404,69486.0,69423.0,0.28498946]
[1770481214427,0.014404,69486.0,69424.0,0.50150165]
[1770481214627,0.014404,69486.0,69425.0,0.50150165]
[1770481214827,0.014404,69486.0,69426.0,0.50150165]
[1770481215032,0.014404,69486.0,69434.0,0.0002]
[1770481215228,0.005,69487.0,69434.0,0.0002]
[1770481215631,0.0144,69503.0,69436.0,0.28498946]
[1770481216025,0.0144,69503.0,69435.0,0.28498946]
[1770481216226,0.014401,69499.0,69445.0,0.0002]
[1770481216528,0.014401,69497.0,69445.0,0.0002]
[1770481216921,0.014403,69491.0,69445.0,0.0002]
[1770481217431,0.014404,69485.0,69425.0,0.28498946]
[1770481217741,0.014404,69485.0,69424.0,0.28498946]
[1770481218630,0.14544143,69490.0,69433.0,0.0002]
[1770481218828,0.014403,69488.0,69433.0,0.0002]
[1770481219231,0.014401,69499.0,69433.0,0.0002]
[1770481219748,0.014401,69497.0,69431.0,0.28498946]
[1770481220031,0.014401,69497.0,69426.0,0.28498946]
[1770481220339,0.014403,69491.0,69431.0,0.28498946]
[1770481220730,0.014403,69491.0,69437.0,0.0002]
[1770481222035,0.014404,69484.0,69425.0,0.11350125]
[1770481222233,0.014404,69484.0,69421.0,0.28498946]
[1770481222437,0.014407,69472.0,69417.0,0.28498946]
[1770481222631,0.014407,69472.0,69411.0,0.28498946]
[1770481223037,0.014407,69472.0,69423.0,0.0002]
[1770481223233,0.014409,69460.0,69423.0,0.0002]
[1770481224138,0.014409,69460.0,69395.0,0.28518946]
[1770481224325,0.005,69467.0,69396.0,0.33009702]
[1770481224526,0.42686558,69475.0,69404.0,0.17148821]
[1770481224739,0.019406,69476.0,69407.0,0.11350125]
[1770481224936,0.21499463,69471.0,69408.0,0.5015544]
[1770481225142,0.2150468,69475.0,69415.0,0.0002]
[1770481225340,0.019406,69476.0,69415.0,0.0002]
[1770481225641,0.2150468,69473.0,69415.0,0.0002]
[1770481225842,0.2150468,69475.0,69415.0,0.11370125]
[1770481226041,0.019406,69476.0,69415.0,0.11370125]
[1770481226042,0.005,69476.0,69418.0,0.11350125]
[1770481226245,0.005,69476.0,69430.0,0.0002]
[1770481226455,0.014404,69486.0,69430.0,0.0002]
[1770481226935,0.21473869,69485.0,69430.0,0.0002]
[1770481227336,0.21473869,69485.0,69422.0,0.11350125]
[1770481227933,0.014404,69484.0,69421.0,0.17148821]
[1770481228141,0.014404,69484.0,69419.0,0.11350125]
[1770481228341,0.21544144,69483.0,69419.0,0.11350125]
[1770481229237,0.21544144,69483.0,69421.0,0.11350125]
[1770481229935,0.014405,69482.0,69420.0,0.11350125]
[1770481230136,0.014405,69482.0,69416.0,0.11350125]
[1770481230330,0.005,69480.0,69420.0,0.28498946]
[1770481230528,0.005,69480.0,69417.0,0.21653322]
[1770481230529,0.005,69480.0,69417.0,0.32879573]
[1770481230733,0.014405,69479.0,69430.0,0.0002]
[1770481231838,0.014406,69474.0,69410.0,0.11350125]
[1770481232142,0.014406,69474.0,69409.0,0.28498946]
[1770481232535,0.014406,69474.0,69410.0,0.50154045]
[1770481232735,0.014406,69474.0,69410.0,0.28498946]
[1770481232935,0.014406,69474.0,69428.0,0.0002]
[1770481234044,0.014406,69474.0,69410.0,0.28622601]
[1770481235342,0.014406,69474.0,69428.0,0.0002]
[1770481235841,0.005,69482.0,69428.0,0.0002]
[1770481236547,0.005,69489.0,69426.0,0.50152049]
[1770481236740,0.005,69489.0,69427.0,0.71801198]
[1770481236942,0.005,69489.0,69427.0,0.50152049]
[1770481237262,0.005,69489.0,69428.0,0.71801196]
[1770481237438,0.005,69489.0,69441.0,0.0002]
[1770481238535,0.005,69489.0,69433.0,0.50152049]
[1770481238741,0.005,69489.0,69435.0,0.50152049]
[1770481238940,0.005,69489.0,69437.0,0.50152049]
[1770481239138,0.005,69495.0,69437.0,0.50152049]
[1770481239446,0.005,69495.0,69441.0,0.50152049]
[1770481239638,0.005,69495.0,69442.0,0.71796781]
[1770481239944,0.005,69495.0,69460.0,0.28868451]
[1770481240147,0.005,69507.0,69460.0,0.28868451]
[1770481240445,0.005,69521.0,69461.0,0.71791437]
[1770481240748,0.005,69521.0,69466.0,0.50152049]
[1770481241046,0.005,69527.0,69469.0,0.50152049]
[1770481241237,0.014392,69542.0,69474.0,0.50152049]
[1770481241436,0.014392,69542.0,69474.0,0.28622601]
[1770481241744,0.21476305,69541.0,69479.0,0.28622601]
[1770481242239,0.21476305,69542.0,69484.0,0.28622601]
[1770481242447,0.014392,69542.0,69484.0,0.1147378]
[1770481242640,0.014392,69542.0,69483.0,0.1147378]
[1770481242838,0.21563582,69541.0,69483.0,0.1147378]
[1770481243150,0.21563582,69541.0,69482.0,0.1147378]
[1770481243340,0.21563582,69541.0,69481.0,0.1147378]
[1770481243541,0.014392,69540.0,69481.0,0.1147378]
[1770481243740,0.014392,69540.0,69473.0,0.1147378]
[1770481243941,0.014392,69540.0,69470.0,0.17148821]
[1770481243942,0.014394,69533.0,69470.0,0.1147378]
[1770481244141,0.014396,69521.0,69468.0,0.0002]
[1770481244538,0.014397,69518.0,69468.0,0.0002]
[1770481244739,0.21553168,69520.0,69468.0,0.0002]
[1770481244939,0.014395,69528.0,69468.0,0.0002]
[1770481245142,0.014393,69537.0,69469.0,0.33111181]
[1770481245345,0.014391,69547.0,69477.0,0.1147378]
[1770481245536,0.21540361,69536.0,69473.0,0.1147378]
[1770481245736,0.014394,69535.0,69472.0,0.1147378]
[1770481246249,0.014394,69535.0,69473.0,0.33109661]
[1770481246442,0.014392,69545.0,69472.0,0.1147378]
[1770481246749,0.21561428,69543.0,69477.0,0.1147378]
[1770481247052,0.21561428,69543.0,69478.0,0.33107574]
[1770481247240,0.21561428,69543.0,69480.0,0.1147378]
[1770481247440,0.21561428,69543.0,69478.0,0.1147378]
[1770481247745,0.014392,69541.0,69477.0,0.1147378]
[1770481247948,0.014392,69541.0,69474.0,0.1147378]
[1770481248146,0.21554625,69540.0,69473.0,0.1147378]
[1770481248442,0.014393,69538.0,69472.0,0.1147378]
[1770481248845,0.014393,69538.0,69468.0,0.1147378]
[1770481249147,0.21446171,69537.0,69467.0,0.1149378]
[1770481249741,0.21446171,69537.0,69468.0,0.33109784]
[1770481249941,0.21446171,69537.0,69468.0,0.1147378]
[1770481250139,0.21446171,69537.0,69464.0,0.17148821]
[1770481250140,0.014394,69533.0,69467.0,0.1147378]
[1770481250340,0.07197,69534.0,69460.0,0.28868451]
[1770481250543,0.014396,69521.0,69460.0,0.28868451]
[1770481251036,0.014394,69531.0,69460.0,0.28868451]
[1770481251236,0.014394,69531.0,69463.0,0.1147378]
[1770481251445,0.014392,69541.0,69464.0,0.33112178]
[1770481251647,0.21616653,69530.0,69467.0,0.1147378]
[1770481251840,0.014392,69541.0,69467.0,0.1147378]
[1770481252040,0.014392,69541.0,69468.0,0.0002]
[1770481252256,0.014394,69534.0,69468.0,0.0002]
[1770481252649,0.23132127,69545.0,69468.0,0.1149378]
[1770481252850,0.23132127,69545.0,69468.0,0.0002]
[1770481253151,0.21693027,69539.0,69466.0,0.1147378]
[1770481253342,0.014392,69542.0,69466.0,0.1147378]
[1770481253645,0.014392,69542.0,69468.0,0.014407]
[1770481253841,0.014392,69542.0,69475.0,0.1147378]
[1770481254040,0.014392,69542.0,69474.0,0.1147378]
[1770481254241,0.014392,69542.0,69475.0,0.33107351]
[1770481254437,0.014392,69542.0,69476.0,0.33107387]
[1770481254648,0.014392,69542.0,69474.0,0.1147378]
[1770481254853,0.014393,69536.0,69473.0,0.0002]
[1770481255237,0.21695393,69535.0,69467.0,0.1147378]
[1770481255441,0.21695393,69535.0,69471.0,0.1147378]
[1770481255644,0.014393,69536.0,69495.0,0.28416643]
[1770481256041,0.014391,69546.0,69495.0,0.28416643]
[1770481256356,0.019389,69557.0,69495.0,0.28416643]
[1770481256546,0.21578137,69545.0,69495.0,0.28416643]
[1770481256850,0.014391,69549.0,69495.0,0.28416643]
[1770481257048,0.014391,69545.0,69495.0,0.28416643]
[1770481257550,0.014392,69542.0,69495.0,0.28416643]
[1770481258051,0.014393,69540.0,69495.0,0.28416643]
[1770481258747,0.01439,69550.0,69495.0,0.28416643]
[1770481259245,0.21623017,69549.0,69495.0,0.28416643]
[1770481260955,0.144,69563.0,69495.0,0.28416643]
[1770481261158,0.014385,69577.0,69500.0,0.14544143]
[1770481261349,0.014385,69577.0,69501.0,0.0144]
[1770481261549,0.0454,69578.0,69515.0,0.1283635]
[1770481261846,0.0454,69578.0,69522.0,0.1139665]
[1770481262246,0.0454,69578.0,69520.0,0.1139665]
[1770481262452,0.0454,69578.0,69559.0,0.28441845]
[1770481262854,0.0454,69578.0,69552.0,0.28591448]
[1770481263452,0.0454,69578.0,69518.0,0.1139665]
[1770481263753,0.0454,69578.0,69543.0,0.28655572]
[1770481264057,0.014385,69576.0,69511.0,0.1139665]
[1770481264257,0.014385,69576.0,69532.0,0.2933639]
[1770481264462,0.014385,69574.0,69532.0,0.2933639]
[1770481264959,0.014386,69572.0,69532.0,0.2933639]
[1770481265457,0.014386,69572.0,69502.0,0.1139665]
[1770481265654,0.014386,69572.0,69537.0,0.28799068]
[1770481265655,0.21604085,69571.0,69537.0,0.28799068]
[1770481265855,0.0454,69578.0,69537.0,0.28799068]
[1770481268652,0.014382,69592.0,69537.0,0.28799068]
[1770481268853,0.01438,69603.0,69537.0,0.28799068]
[1770481269158,0.21674085,69591.0,69537.0,0.28799068]
[1770481269459,0.01438,69601.0,69537.0,0.28799068]
[1770481269658,0.21507052,69590.0,69537.0,0.28799068]
[1770481269856,0.17209574,69600.0,69537.0,0.5731624]
[1770481270060,0.014378,69611.0,69540.0,0.28517172]
[1770481270261,0.21507052,69601.0,69541.0,0.50133199]
[1770481270460,0.21441574,69607.0,69543.0,0.28517172]
[1770481270655,0.014378,69611.0,69547.0,0.28517172]
[1770481270963,0.21441574,69610.0,69552.0,0.28517172]
[1770481271160,0.21441574,69610.0,69553.0,0.33007589]
[1770481271462,0.0002,69615.0,69558.0,0.1139665]
[1770481271757,0.0002,69615.0,69562.0,0.1139665]
[1770481271965,0.0002,69615.0,69561.0,0.1139665]
[1770481272164,0.0002,69615.0,69563.0,0.1139665]
[1770481272366,0.0002,69615.0,69561.0,0.1139665]
[1770481272564,0.014376,69620.0,69560.0,0.1139665]
[1770481272764,0.014376,69620.0,69553.0,0.1139665]
[1770481272964,0.22871103,69620.0,69550.0,0.1139665]
[1770481273157,0.22871103,69620.0,69549.0,0.1139665]
[1770481273362,0.22871103,69620.0,69553.0,0.1139665]
[1770481273857,0.22871103,69620.0,69540.0,0.14544143]
[1770481273858,0.0002,69606.0,69560.0,0.14544143]
[1770481274774,0.0002,69606.0,69555.0,0.1139665]
[1770481274775,0.0002,69606.0,69550.0,0.1139665]
[1770481274969,0.014376,69618.0,69549.0,0.1139665]
[1770481275259,0.21498439,69617.0,69548.0,0.1139665]
[1770481275567,0.0454,69621.0,69557.0,0.1139665]
[1770481275768,0.0454,69621.0,69555.0,0.1139665]
[1770481276064,0.21498439,69620.0,69554.0,0.1139665]
[1770481276258,0.0002,69607.0,69553.0,0.1139665]
[1770481276862,0.0002,69607.0,69546.0,0.1139665]
[1770481277068,0.23114867,69606.0,69536.0,0.1139665]
[1770481277363,0.23134867,69606.0,69532.0,0.1139665]
[1770481277566,0.01438,69601.0,69532.0,0.1139665]
[1770481277767,0.01438,69601.0,69530.0,0.43238035]
[1770481277964,0.014381,69597.0,69530.0,0.43238035]
[1770481278461,0.21458677,69604.0,69530.0,0.54634685]
[1770481278657,0.01438,69601.0,69530.0,0.43238035]
[1770481278858,0.01438,69601.0,69530.0,0.54634685]
[1770481279058,0.21458677,69600.0,69533.0,0.1139665]
[1770481279258,0.01438,69599.0,69530.0,0.43238035]
[1770481279660,0.014381,69597.0,69530.0,0.28738632]
[1770481280064,0.014381,69595.0,69530.0,0.28738632]
[1770481280459,0.014381,69595.0,69530.0,0.43238035]
[1770481280963,0.014379,69605.0,69533.0,0.1139665]
[1770481281466,0.01438,69602.0,69532.0,0.1139665]
[1770481281665,0.01438,69602.0,69533.0,0.1139665]
[1770481281870,0.21611213,69601.0,69533.0,0.1139665]
[1770481282368,0.21611213,69601.0,69534.0,0.1139665]
[1770481282560,0.21611213,69601.0,69533.0,0.1139665]
[1770481283073,0.01438,69599.0,69533.0,0.1139665]
[1770481283362,0.21552548,69598.0,69533.0,0.1139665]
[1770481283570,0.014381,69596.0,69532.0,0.1139665]
[1770481283768,0.014381,69596.0,69531.0,0.1139665]
[1770481283966,0.014381,69594.0,69530.0,0.40135282]
[1770481284367,0.014381,69594.0,69530.0,0.28738632]
[1770481284667,0.014382,69589.0,69530.0,0.28738632]
[1770481285662,0.01438,69599.0,69530.0,0.28738632]
[1770481285869,0.01438,69599.0,69533.0,0.28517172]
[1770481286062,0.21453695,69598.0,69533.0,0.1139665]
[1770481286263,0.21453695,69598.0,69533.0,0.28517172]
[1770481286462,0.21453695,69598.0,69534.0,0.28517172]
[1770481287168,0.014381,69596.0,69533.0,0.28517172]
[1770481287358,0.014381,69596.0,69531.0,0.28517172]
[1770481287658,0.014381,69596.0,69530.0,0.28738632]
[1770481287863,0.014383,69584.0,69530.0,0.28738632]
[1770481288071,0.158581,69594.0,69530.0,0.28738632]
[1770481288365,0.014381,69594.0,69530.0,0.57255804]
[1770481288569,0.21688357,69593.0,69530.0,0.28738632]
[1770481288759,0.21688357,69593.0,69530.0,0.78705357]
[1770481288964,0.21688357,69593.0,69531.0,0.49966725]
[1770481290572,0.014382,69592.0,69531.0,0.49966725]
[1770481290763,0.014382,69592.0,69530.0,0.28738632]
[1770481290970,0.21688357,69593.0,69530.0,0.28738632]
[1770481290971,0.014382,69589.0,69530.0,0.28738632]
[1770481291474,0.21486782,69588.0,69530.0,0.28738632]
[1770481292570,0.01438,69599.0,69530.0,0.78705357]
[1770481292776,0.01438,69599.0,69530.0,0.28738632]
[1770481292964,0.21678297,69593.0,69530.0,0.78705357]
[1770481293164,0.014381,69597.0,69530.0,0.78705357]
[1770481293476,0.014381,69594.0,69530.0,0.28738632]
[1770481293868,0.21589936,69593.0,69530.0,0.28738632]
[1770481294069,0.014382,69590.0,69530.0,0.28738632]
[1770481294472,0.21598845,69589.0,69530.0,0.28738632]
[1770481296876,0.42686558,69597.0,69533.0,0.78691678]
[1770481297075,0.0002,69600.0,69535.0,0.49966725]
[1770481297482,0.21527604,69599.0,69535.0,0.49966725]
[1770481297683,0.42686558,69603.0,69540.0,0.14499403]
[1770481297887,0.0002,69604.0,69542.0,0.49966725]
[1770481298278,0.21527604,69603.0,69541.0,0.49966725]
[1770481298687,0.21527604,69603.0,69540.0,0.49966725]
[1770481299285,0.01438,69601.0,69537.0,0.28799068]
[1770481299478,0.44124558,69601.0,69537.0,0.28799068]
[1770481299680,0.21425282,69600.0,69537.0,0.28799068]
[1770481300077,0.01438,69599.0,69537.0,0.28799068]
[1770481300282,0.44124558,69599.0,69537.0,0.28799068]
[1770481300488,0.014381,69595.0,69537.0,0.28799068]
[1770481300792,0.014382,69589.0,69537.0,0.28799068]
[1770481301188,0.42686558,69588.0,69537.0,0.28799068]
[1770481301487,0.65661063,69587.0,69537.0,0.28799068]
[1770481301892,0.42686558,69586.0,69537.0,0.28799068]
[1770481302390,0.42686558,69585.0,69537.0,0.28799068]
[1770481302692,0.0002,69591.0,69537.0,0.28799068]
[1770481302991,0.21427008,69590.0,69537.0,0.28799068]
[1770481303389,0.014382,69591.0,69537.0,0.28799068]
[1770481303690,0.2305217,69591.0,69537.0,0.28799068]
[1770481303887,0.42686558,69586.0,69537.0,0.28799068]
[1770481305491,0.42686558,69585.0,69537.0,0.28799068]
[1770481306494,0.42686558,69583.0,69537.0,0.28799068]
[1770481307594,0.42686558,69584.0,69537.0,0.28799068]
[1770481307988,0.42686558,69585.0,69537.0,0.28799068]
[1770481308387,0.42686558,69584.0,69537.0,0.28799068]
[1770481308786,0.014384,69582.0,69537.0,0.28799068]
[1770481309394,0.014384,69582.0,69537.0,0.39799068]
[1770481309593,0.42686558,69581.0,69537.0,0.39799068]